[Event "Titled Tuesday Blitz November 07 Early 2023"]
[White "Czerw, Dawid"]
[Black "Kohler, Aran"]
[WhiteFideId "1145746"]
[BlackFideId "1002856"]
[WhiteElo "2458"]
[BlackElo "2294"]
[Result "1-0"]
[Round "6"]
[TimeControl "180+1"]
[Date "2023.11.07"]
[WhiteClock "0:00:16"]
[BlackClock "0:00:21"]
[Board "154"]

1. e4 {[%clk 0:03:00]}  g6 {[%clk 0:02:58]} 2. Nc3 {[%clk 0:03:00]}  Bg7 {[%clk 0:02:59]} 3. d4 {[%clk 0:03:01]}  d6 {[%clk 0:02:59]} 4. f4 {[%clk 0:03:02]}  a6 {[%clk 0:02:58]} 5. Nf3 {[%clk 0:03:02]}  Nd7 {[%clk 0:02:58]} 6. Bd3 {[%clk 0:03:03]}  c5 {[%clk 0:02:54]} 7. d5 {[%clk 0:02:58]}  b5 {[%clk 0:02:51]} 8. a4 {[%clk 0:02:58]}  c4 {[%clk 0:02:51]} 9. Be2 {[%clk 0:02:55]}  Rb8 {[%clk 0:02:44]} 10. axb5 {[%clk 0:02:55]}  axb5 {[%clk 0:02:44]} 11. Nd4 {[%clk 0:02:55]}  Bxd4 {[%clk 0:02:28]} 12. Qxd4 {[%clk 0:02:55]}  f6 {[%clk 0:02:24]} 13. O-O {[%clk 0:02:48]}  Nh6 {[%clk 0:02:20]} 14. Be3 {[%clk 0:02:34]}  Nf7 {[%clk 0:02:18]} 15. b3 {[%clk 0:02:26]}  cxb3 {[%clk 0:02:17]} 16. cxb3 {[%clk 0:02:26]}  O-O {[%clk 0:02:10]} 17. Bxb5 {[%clk 0:02:23]}  Nc5 {[%clk 0:02:10]} 18. b4 {[%clk 0:02:19]}  Nb3 {[%clk 0:02:09]} 19. Qc4 {[%clk 0:02:00]}  Nxa1 {[%clk 0:02:08]} 20. Rxa1 {[%clk 0:02:01]}  Bd7 {[%clk 0:02:06]} 21. Bc6 {[%clk 0:01:57]}  Bxc6 {[%clk 0:01:51]} 22. dxc6 {[%clk 0:01:58]}  Ra8 {[%clk 0:01:50]} 23. Rb1 {[%clk 0:01:57]}  Kg7 {[%clk 0:01:47]} 24. b5 {[%clk 0:01:55]}  Qa5 {[%clk 0:01:28]} 25. b6 {[%clk 0:01:50]}  Rac8 {[%clk 0:01:28]} 26. b7 {[%clk 0:01:45]}  d5 {[%clk 0:01:16]} 27. exd5 {[%clk 0:01:35]}  Nd6 {[%clk 0:01:15]} 28. Qb4 {[%clk 0:01:24]}  Nxb7 {[%clk 0:01:00]} 29. cxb7 {[%clk 0:00:51]}  Qxb4 {[%clk 0:00:57]} 30. Rxb4 {[%clk 0:00:52]}  Rxc3 {[%clk 0:00:56]} 31. Ba7 {[%clk 0:00:48]}  Rd3 {[%clk 0:00:45]} 32. b8=Q {[%clk 0:00:41]}  Rxb8 {[%clk 0:00:44]} 33. Bxb8 {[%clk 0:00:39]}  Rxd5 {[%clk 0:00:45]} 34. Rb2 {[%clk 0:00:36]}  Rd1+ {[%clk 0:00:42]} 35. Kf2 {[%clk 0:00:37]}  Kf7 {[%clk 0:00:42]} 36. Ba7 {[%clk 0:00:36]}  h5 {[%clk 0:00:41]} 37. Bc5 {[%clk 0:00:32]}  Rd7 {[%clk 0:00:41]} 38. Ra2 {[%clk 0:00:30]}  Rc7 {[%clk 0:00:41]} 39. Be3 {[%clk 0:00:28]}  f5 {[%clk 0:00:40]} 40. Bd4 {[%clk 0:00:24]}  Rd7 {[%clk 0:00:40]} 41. Ke3 {[%clk 0:00:25]}  Rb7 {[%clk 0:00:40]} 42. Ra7 {[%clk 0:00:24]}  Rb3+ {[%clk 0:00:39]} 43. Kd2 {[%clk 0:00:21]}  Rb5 {[%clk 0:00:38]} 44. Kc3 {[%clk 0:00:20]}  Ke6 {[%clk 0:00:36]} 45. Kc4 {[%clk 0:00:20]}  Rb1 {[%clk 0:00:34]} 46. Bc5 {[%clk 0:00:18]}  Rb2 {[%clk 0:00:32]} 47. Rxe7+ {[%clk 0:00:14]}  Kf6 {[%clk 0:00:32]} 48. Bd4+ {[%clk 0:00:14]}  Kxe7 {[%clk 0:00:32]} 49. Bxb2 {[%clk 0:00:15]}  Kf7 {[%clk 0:00:32]} 50. Kd5 {[%clk 0:00:15]}  Ke7 {[%clk 0:00:32]} 51. h4 {[%clk 0:00:15]}  Kf7 {[%clk 0:00:32]} 52. Ke5 {[%clk 0:00:16]}  Ke7 {[%clk 0:00:31]} 53. Bc3 {[%clk 0:00:16]}  Kf7 {[%clk 0:00:31]} 54. Kd6 {[%clk 0:00:16]}  Kg8 {[%clk 0:00:27]} 55. Ke6 {[%clk 0:00:16]}  Kh7 {[%clk 0:00:27]} 56. Kf7 {[%clk 0:00:14]}  Kh6 {[%clk 0:00:27]} 57. Bf6 {[%clk 0:00:14]}  Kh7 {[%clk 0:00:26]} 58. Bg5 {[%clk 0:00:14]}  Kh8 {[%clk 0:00:26]} 59. Kxg6 {[%clk 0:00:15]}  Kg8 {[%clk 0:00:26]} 60. Kxf5 {[%clk 0:00:15]}  Kh8 {[%clk 0:00:21]} 61. Kg6 {[%clk 0:00:16]} 1-0


[Site "https://www.chess.com"]

[Event "Titled Tuesday Blitz November 07 Early 2023"]
[White "Kashtanov, Ruslan"]
[Black "Ruge, Edison"]
[WhiteFideId "4124871"]
[BlackFideId "4401000"]
[WhiteElo "2452"]
[BlackElo "2275"]
[Result "1-0"]
[Round "6"]
[TimeControl "180+1"]
[Date "2023.11.07"]
[WhiteClock "0:00:07"]
[BlackClock "0:00:00"]
[Board "156"]

1. e4 {[%clk 0:02:38]}  e5 {[%clk 0:03:00]} 2. Nf3 {[%clk 0:02:38]}  Nc6 {[%clk 0:02:59]} 3. d4 {[%clk 0:02:36]}  exd4 {[%clk 0:02:56]} 4. Bc4 {[%clk 0:02:37]}  Nf6 {[%clk 0:02:55]} 5. e5 {[%clk 0:02:37]}  Ne4 {[%clk 0:02:54]} 6. Qe2 {[%clk 0:02:35]}  Nc5 {[%clk 0:02:50]} 7. O-O {[%clk 0:02:35]}  Ne6 {[%clk 0:02:49]} 8. Bxe6 {[%clk 0:02:29]}  dxe6 {[%clk 0:02:49]} 9. Rd1 {[%clk 0:02:29]}  Bc5 {[%clk 0:02:46]} 10. Bg5 {[%clk 0:02:19]}  Be7 {[%clk 0:02:36]} 11. Bxe7 {[%clk 0:02:13]}  Qxe7 {[%clk 0:02:35]} 12. Nxd4 {[%clk 0:02:10]}  Nxd4 {[%clk 0:02:35]} 13. Rxd4 {[%clk 0:02:11]}  O-O {[%clk 0:02:34]} 14. Nc3 {[%clk 0:01:57]}  Bd7 {[%clk 0:02:33]} 15. Rad1 {[%clk 0:01:57]}  Bc6 {[%clk 0:02:32]} 16. b4 {[%clk 0:01:51]}  a6 {[%clk 0:02:30]} 17. a4 {[%clk 0:01:49]}  Rad8 {[%clk 0:02:29]} 18. b5 {[%clk 0:01:47]}  Rxd4 {[%clk 0:02:29]} 19. Rxd4 {[%clk 0:01:46]}  axb5 {[%clk 0:02:29]} 20. axb5 {[%clk 0:01:47]}  Qa3 {[%clk 0:02:04]} 21. Rd3 {[%clk 0:01:19]}  Qa1+ {[%clk 0:01:57]} 22. Qf1 {[%clk 0:01:19]}  Qxf1+ {[%clk 0:01:46]} 23. Kxf1 {[%clk 0:01:20]}  Be8 {[%clk 0:01:33]} 24. Ke1 {[%clk 0:01:19]}  f6 {[%clk 0:01:09]} 25. exf6 {[%clk 0:01:10]}  Rxf6 {[%clk 0:01:07]} 26. Rd8 {[%clk 0:01:05]}  Kf8 {[%clk 0:01:06]} 27. Rc8 {[%clk 0:00:53]}  Rf7 {[%clk 0:01:05]} 28. Ne4 {[%clk 0:00:51]}  b6 {[%clk 0:00:29]} 29. c4 {[%clk 0:00:46]}  h6 {[%clk 0:00:28]} 30. Kd2 {[%clk 0:00:43]}  Rd7+ {[%clk 0:00:27]} 31. Ke3 {[%clk 0:00:42]}  Ke7 {[%clk 0:00:27]} 32. c5 {[%clk 0:00:39]}  Bg6 {[%clk 0:00:22]} 33. c6 {[%clk 0:00:37]}  Rd5 {[%clk 0:00:18]} 34. Rxc7+ {[%clk 0:00:35]}  Kd8 {[%clk 0:00:18]} 35. Rxg7 {[%clk 0:00:28]}  Bxe4 {[%clk 0:00:17]} 36. Kxe4 {[%clk 0:00:29]}  Rxb5 {[%clk 0:00:17]} 37. Rd7+ {[%clk 0:00:20]}  Kc8 {[%clk 0:00:16]} 38. Rh7 {[%clk 0:00:19]}  Rg5 {[%clk 0:00:16]} 39. g3 {[%clk 0:00:19]}  b5 {[%clk 0:00:13]} 40. Rxh6 {[%clk 0:00:18]}  Kc7 {[%clk 0:00:14]} 41. Rxe6 {[%clk 0:00:17]}  b4 {[%clk 0:00:14]} 42. Kd3 {[%clk 0:00:17]}  b3 {[%clk 0:00:13]} 43. Kc3 {[%clk 0:00:16]}  Rb5 {[%clk 0:00:13]} 44. Kb2 {[%clk 0:00:17]}  Rb4 {[%clk 0:00:12]} 45. h4 {[%clk 0:00:15]}  Rb5 {[%clk 0:00:12]} 46. Re3 {[%clk 0:00:13]}  Kxc6 {[%clk 0:00:11]} 47. Rxb3 {[%clk 0:00:13]}  Rf5 {[%clk 0:00:10]} 48. f4 {[%clk 0:00:13]}  Rf8 {[%clk 0:00:08]} 49. Rd3 {[%clk 0:00:12]}  Kc5 {[%clk 0:00:06]} 50. Kc3 {[%clk 0:00:12]}  Ra8 {[%clk 0:00:06]} 51. Kd2 {[%clk 0:00:13]}  Re8 {[%clk 0:00:05]} 52. h5 {[%clk 0:00:09]}  Kc4 {[%clk 0:00:05]} 53. Re3 {[%clk 0:00:08]}  Rg8 {[%clk 0:00:05]} 54. Ke2 {[%clk 0:00:07]}  Kd4 {[%clk 0:00:06]} 55. Kf2 {[%clk 0:00:07]}  Rh8 {[%clk 0:00:03]} 56. g4 {[%clk 0:00:07]}  Rf8 {[%clk 0:00:00]} 57. Kf3 {[%clk 0:00:07]} 1-0


[Site "https://www.chess.com"]

[Event "Titled Tuesday Blitz November 07 Early 2023"]
[White "Quirke, Jeffrey"]
[Black "Jesseinkman"]
[WhiteFideId "2013029"]
[WhiteElo "2253"]
[BlackElo "2444"]
[Result "0-1"]
[Round "6"]
[TimeControl "180+1"]
[Date "2023.11.07"]
[WhiteClock "0:00:00"]
[BlackClock "0:00:29"]
[Board "159"]

1. e4 {[%clk 0:03:00]}  e5 {[%clk 0:02:59]} 2. d4 {[%clk 0:02:59]}  exd4 {[%clk 0:02:59]} 3. Qxd4 {[%clk 0:03:00]}  Nc6 {[%clk 0:02:59]} 4. Qe3 {[%clk 0:03:01]}  Nf6 {[%clk 0:02:59]} 5. Bd2 {[%clk 0:03:01]}  Bb4 {[%clk 0:02:59]} 6. a3 {[%clk 0:03:00]}  Bxd2+ {[%clk 0:02:59]} 7. Nxd2 {[%clk 0:03:01]}  O-O {[%clk 0:03:00]} 8. O-O-O {[%clk 0:02:58]}  Re8 {[%clk 0:02:55]} 9. Qg3 {[%clk 0:02:46]}  Nxe4 {[%clk 0:02:50]} 10. Nxe4 {[%clk 0:02:46]}  Rxe4 {[%clk 0:02:51]} 11. Bd3 {[%clk 0:02:45]}  Re8 {[%clk 0:02:32]} 12. Nf3 {[%clk 0:02:39]}  h6 {[%clk 0:02:32]} 13. h4 {[%clk 0:02:38]}  d6 {[%clk 0:02:26]} 14. Ng5 {[%clk 0:02:38]}  Ne5 {[%clk 0:02:24]} 15. Bh7+ {[%clk 0:02:23]}  Kf8 {[%clk 0:02:17]} 16. f4 {[%clk 0:02:14]}  Ng4 {[%clk 0:02:14]} 17. Qb3 {[%clk 0:01:41]}  hxg5 {[%clk 0:01:51]} 18. hxg5 {[%clk 0:01:39]}  Be6 {[%clk 0:01:13]} 19. Qg3 {[%clk 0:01:38]}  g6 {[%clk 0:01:00]} 20. Bxg6 {[%clk 0:01:27]}  fxg6 {[%clk 0:01:01]} 21. Rh7 {[%clk 0:01:27]}  Bg8 {[%clk 0:00:50]} 22. Rh8 {[%clk 0:01:15]}  Qd7 {[%clk 0:00:46]} 23. Rdh1 {[%clk 0:01:06]}  Re3 {[%clk 0:00:40]} 24. Qh4 {[%clk 0:00:43]}  Qg7 {[%clk 0:00:40]} 25. Qxg4 {[%clk 0:00:39]}  Rae8 {[%clk 0:00:40]} 26. R8h2 {[%clk 0:00:08]}  Qd4 {[%clk 0:00:35]} 27. Rd1 {[%clk 0:00:03]}  Re1 {[%clk 0:00:35]} 28. Rh1 {[%clk 0:00:04]}  Rxh1 {[%clk 0:00:31]} 29. Rxh1 {[%clk 0:00:03]}  Qe3+ {[%clk 0:00:31]} 30. Kb1 {[%clk 0:00:03]}  Qe1+ {[%clk 0:00:28]} 31. Qd1 {[%clk 0:00:03]}  Qxd1+ {[%clk 0:00:28]} 32. Rxd1 {[%clk 0:00:04]}  Re2 {[%clk 0:00:29]} 33. g4 {[%clk 0:00:00]}  Rf2 {[%clk 0:00:29]} 0-1


[Site "https://www.chess.com"]

[Event "Titled Tuesday Blitz November 07 Early 2023"]
[White "Modric, Nesa"]
[Black "Jovic, Stanoje"]
[WhiteFideId "922579"]
[BlackFideId "905020"]
[WhiteElo "2168"]
[BlackElo "2435"]
[Result "0-1"]
[Round "6"]
[TimeControl "180+1"]
[Date "2023.11.07"]
[WhiteClock "0:00:00"]
[BlackClock "0:01:13"]
[Board "162"]

1. e4 {[%clk 0:03:00]}  c6 {[%clk 0:02:59]} 2. d4 {[%clk 0:02:59]}  d5 {[%clk 0:02:59]} 3. e5 {[%clk 0:02:58]}  c5 {[%clk 0:02:59]} 4. c3 {[%clk 0:02:57]}  Nc6 {[%clk 0:02:58]} 5. Be2 {[%clk 0:02:57]}  cxd4 {[%clk 0:02:53]} 6. cxd4 {[%clk 0:02:56]}  Qb6 {[%clk 0:02:50]} 7. Nc3 {[%clk 0:02:52]}  Nxd4 {[%clk 0:02:44]} 8. Nxd5 {[%clk 0:02:44]}  Qa5+ {[%clk 0:02:37]} 9. Nc3 {[%clk 0:02:29]}  Qxe5 {[%clk 0:02:35]} 10. Be3 {[%clk 0:02:09]}  Nxe2 {[%clk 0:02:31]} 11. Ngxe2 {[%clk 0:02:05]}  Bd7 {[%clk 0:02:25]} 12. O-O {[%clk 0:01:59]}  Nf6 {[%clk 0:02:25]} 13. Bf4 {[%clk 0:01:35]}  Qh5 {[%clk 0:02:22]} 14. Qb3 {[%clk 0:01:22]}  b6 {[%clk 0:02:14]} 15. Ng3 {[%clk 0:01:20]}  Qg4 {[%clk 0:02:08]} 16. Be5 {[%clk 0:00:57]}  Qe6 {[%clk 0:02:00]} 17. Qxe6 {[%clk 0:00:45]}  fxe6 {[%clk 0:02:00]} 18. Rac1 {[%clk 0:00:28]}  g6 {[%clk 0:01:58]} 19. Nce4 {[%clk 0:00:25]}  Bg7 {[%clk 0:01:55]} 20. Ng5 {[%clk 0:00:23]}  h6 {[%clk 0:01:50]} 21. Nf3 {[%clk 0:00:18]}  O-O {[%clk 0:01:33]} 22. Rc7 {[%clk 0:00:18]}  Rfd8 {[%clk 0:01:33]} 23. Rd1 {[%clk 0:00:17]}  Nd5 {[%clk 0:01:32]} 24. Bxg7 {[%clk 0:00:04]}  Kxg7 {[%clk 0:01:25]} 25. Rb7 {[%clk 0:00:04]}  Bc6 {[%clk 0:01:22]} 26. Rxd5 {[%clk 0:00:04]}  Bxb7 {[%clk 0:01:18]} 27. Re5 {[%clk 0:00:03]}  Rd1+ {[%clk 0:01:16]} 28. Nf1 {[%clk 0:00:00]}  Ba6 {[%clk 0:01:13]} 0-1


[Site "https://www.chess.com"]

[Event "Titled Tuesday Blitz November 07 Early 2023"]
[White "WindWhistler11"]
[Black "jimmy-schlumpf"]
[WhiteElo "2434"]
[BlackElo "2229"]
[Result "1-0"]
[Round "6"]
[TimeControl "180+1"]
[Date "2023.11.07"]
[WhiteClock "0:00:45"]
[BlackClock "0:00:00"]
[Board "163"]

1. Nf3 {[%clk 0:02:56]}  Nf6 {[%clk 0:02:53]} 2. g3 {[%clk 0:02:56]}  g6 {[%clk 0:02:52]} 3. Bg2 {[%clk 0:02:57]}  Bg7 {[%clk 0:02:52]} 4. O-O {[%clk 0:02:57]}  O-O {[%clk 0:02:52]} 5. d3 {[%clk 0:02:58]}  c5 {[%clk 0:02:52]} 6. Nbd2 {[%clk 0:02:58]}  Nc6 {[%clk 0:02:52]} 7. e4 {[%clk 0:02:59]}  d6 {[%clk 0:02:52]} 8. c3 {[%clk 0:02:59]}  Rb8 {[%clk 0:02:52]} 9. d4 {[%clk 0:03:00]}  cxd4 {[%clk 0:02:48]} 10. cxd4 {[%clk 0:03:01]}  d5 {[%clk 0:02:43]} 11. e5 {[%clk 0:02:59]}  Ne4 {[%clk 0:02:43]} 12. Nb3 {[%clk 0:02:58]}  e6 {[%clk 0:02:19]} 13. Ne1 {[%clk 0:02:33]}  h6 {[%clk 0:02:08]} 14. Be3 {[%clk 0:02:15]}  b6 {[%clk 0:02:05]} 15. f3 {[%clk 0:02:14]}  Ng5 {[%clk 0:02:03]} 16. Qd2 {[%clk 0:02:11]}  Ba6 {[%clk 0:02:00]} 17. Rf2 {[%clk 0:02:09]}  Na5 {[%clk 0:01:39]} 18. Nxa5 {[%clk 0:01:57]}  bxa5 {[%clk 0:01:39]} 19. h4 {[%clk 0:01:57]}  Nh7 {[%clk 0:01:38]} 20. Bxh6 {[%clk 0:01:58]}  Qb6 {[%clk 0:01:20]} 21. Bxg7 {[%clk 0:01:51]}  Kxg7 {[%clk 0:01:18]} 22. Bf1 {[%clk 0:01:42]}  Bxf1 {[%clk 0:01:07]} 23. Kxf1 {[%clk 0:01:42]}  Rfc8 {[%clk 0:01:06]} 24. Kg2 {[%clk 0:01:39]}  a4 {[%clk 0:01:02]} 25. h5 {[%clk 0:01:26]}  gxh5 {[%clk 0:00:57]} 26. Nd3 {[%clk 0:01:24]}  Qxd4 {[%clk 0:00:51]} 27. Rh1 {[%clk 0:01:24]}  a3 {[%clk 0:00:43]} 28. Rxh5 {[%clk 0:01:13]}  Kg8 {[%clk 0:00:37]} 29. Rh4 {[%clk 0:00:57]}  axb2 {[%clk 0:00:34]} 30. Rxd4 {[%clk 0:00:48]}  b1=Q {[%clk 0:00:33]} 31. Qh6 {[%clk 0:00:47]}  Rc2 {[%clk 0:00:00]} 32. Rg4+ {[%clk 0:00:45]} 1-0


[Site "https://www.chess.com"]

[Event "Titled Tuesday Blitz November 07 Early 2023"]
[White "Estevez Polanco, Leonardo Rafael"]
[Black "lagunanivaria"]
[WhiteFideId "6402798"]
[WhiteElo "2168"]
[BlackElo "2431"]
[Result "0-1"]
[Round "6"]
[TimeControl "180+1"]
[Date "2023.11.07"]
[WhiteClock "0:02:38"]
[BlackClock "0:02:35"]
[Board "164"]

1. e4 {[%clk 0:02:57]}  c6 {[%clk 0:02:58]} 2. Nf3 {[%clk 0:02:58]}  d5 {[%clk 0:02:58]} 3. Nc3 {[%clk 0:02:58]}  Bg4 {[%clk 0:02:58]} 4. h3 {[%clk 0:02:58]}  Bxf3 {[%clk 0:02:59]} 5. Qxf3 {[%clk 0:02:59]}  Nf6 {[%clk 0:03:00]} 6. exd5 {[%clk 0:02:59]}  cxd5 {[%clk 0:02:59]} 7. d4 {[%clk 0:03:00]}  Nc6 {[%clk 0:02:59]} 8. Be3 {[%clk 0:03:00]}  e6 {[%clk 0:02:56]} 9. Ne2 {[%clk 0:02:59]}  Nb4 {[%clk 0:02:50]} 10. O-O-O {[%clk 0:02:47]}  Nxa2+ {[%clk 0:02:39]} 11. Kb1 {[%clk 0:02:47]}  Nb4 {[%clk 0:02:38]} 12. Nf4 {[%clk 0:02:38]}  Qa5 {[%clk 0:02:35]} 0-1


[Site "https://www.chess.com"]

[Event "Titled Tuesday Blitz November 07 Early 2023"]
[White "Mohammadian,Mohammad"]
[Black "Polaczek, Richard"]
[WhiteFideId "12566055"]
[BlackFideId "200026"]
[WhiteElo "1919"]
[BlackElo "2430"]
[Result "0-1"]
[Round "6"]
[TimeControl "180+1"]
[Date "2023.11.07"]
[WhiteClock "0:01:12"]
[BlackClock "0:01:35"]
[Board "165"]

1. e4 {[%clk 0:03:00]}  Nf6 {[%clk 0:02:59]} 2. e5 {[%clk 0:02:58]}  Nd5 {[%clk 0:02:58]} 3. Nf3 {[%clk 0:02:57]}  d6 {[%clk 0:02:58]} 4. exd6 {[%clk 0:02:57]}  cxd6 {[%clk 0:02:57]} 5. Bc4 {[%clk 0:02:57]}  Nb6 {[%clk 0:02:55]} 6. Bb3 {[%clk 0:02:56]}  g6 {[%clk 0:02:55]} 7. O-O {[%clk 0:02:56]}  Bg7 {[%clk 0:02:55]} 8. d4 {[%clk 0:02:56]}  O-O {[%clk 0:02:55]} 9. c3 {[%clk 0:02:54]}  Nc6 {[%clk 0:02:54]} 10. Be3 {[%clk 0:02:51]}  Bf5 {[%clk 0:02:49]} 11. Nbd2 {[%clk 0:02:48]}  Na5 {[%clk 0:02:47]} 12. Bc2 {[%clk 0:02:46]}  Bxc2 {[%clk 0:02:46]} 13. Qxc2 {[%clk 0:02:46]}  Rc8 {[%clk 0:02:46]} 14. Qd3 {[%clk 0:02:38]}  Nac4 {[%clk 0:02:43]} 15. Nxc4 {[%clk 0:02:37]}  Nxc4 {[%clk 0:02:43]} 16. b3 {[%clk 0:02:35]}  Nxe3 {[%clk 0:02:37]} 17. fxe3 {[%clk 0:02:35]}  e5 {[%clk 0:02:37]} 18. dxe5 {[%clk 0:02:29]}  dxe5 {[%clk 0:02:36]} 19. Qxd8 {[%clk 0:02:28]}  Rfxd8 {[%clk 0:02:36]} 20. c4 {[%clk 0:02:27]}  e4 {[%clk 0:02:32]} 21. Ng5 {[%clk 0:02:19]}  Bxa1 {[%clk 0:02:29]} 22. Rxa1 {[%clk 0:02:14]}  f5 {[%clk 0:02:20]} 23. Ne6 {[%clk 0:02:12]}  Rd3 {[%clk 0:02:13]} 24. Kf2 {[%clk 0:02:08]}  Rd2+ {[%clk 0:02:12]} 25. Kf1 {[%clk 0:02:03]}  Kf7 {[%clk 0:02:01]} 26. Nd4 {[%clk 0:02:01]}  f4 {[%clk 0:01:55]} 27. Ke1 {[%clk 0:01:32]}  fxe3 {[%clk 0:01:49]} 28. Nb5 {[%clk 0:01:29]}  Rcd8 {[%clk 0:01:42]} 29. Nxa7 {[%clk 0:01:26]}  Rxg2 {[%clk 0:01:40]} 30. b4 {[%clk 0:01:16]}  Rg1+ {[%clk 0:01:38]} 31. Ke2 {[%clk 0:01:15]}  Rxa1 {[%clk 0:01:37]} 32. Kxe3 {[%clk 0:01:15]}  Rxa2 {[%clk 0:01:36]} 33. Kxe4 {[%clk 0:01:12]}  Rxa7 {[%clk 0:01:35]} 0-1


[Site "https://www.chess.com"]

[Event "Titled Tuesday Blitz November 07 Early 2023"]
[White "Piesik, Piotr"]
[Black "missponyo10"]
[WhiteFideId "1136194"]
[WhiteElo "2658"]
[BlackElo "2020"]
[Result "1-0"]
[Round "6"]
[TimeControl "180+1"]
[Date "2023.11.07"]
[WhiteClock "0:01:22"]
[BlackClock "0:00:02"]
[Board "166"]

1. Nf3 {[%clk 0:02:57]}  d5 {[%clk 0:02:59]} 2. g3 {[%clk 0:02:58]}  c6 {[%clk 0:02:58]} 3. Bg2 {[%clk 0:02:58]}  e6 {[%clk 0:02:59]} 4. O-O {[%clk 0:02:58]}  Nf6 {[%clk 0:02:59]} 5. d3 {[%clk 0:02:59]}  Nbd7 {[%clk 0:02:59]} 6. Nbd2 {[%clk 0:02:59]}  Bd6 {[%clk 0:02:58]} 7. e4 {[%clk 0:03:00]}  dxe4 {[%clk 0:02:55]} 8. dxe4 {[%clk 0:03:01]}  O-O {[%clk 0:02:54]} 9. Qe2 {[%clk 0:03:01]}  Bc7 {[%clk 0:02:50]} 10. a4 {[%clk 0:03:00]}  Qe7 {[%clk 0:02:45]} 11. b3 {[%clk 0:02:59]}  Rd8 {[%clk 0:02:44]} 12. Nc4 {[%clk 0:02:57]}  h6 {[%clk 0:02:35]} 13. Ba3 {[%clk 0:02:57]}  Qe8 {[%clk 0:02:34]} 14. Nd6 {[%clk 0:02:52]}  Bxd6 {[%clk 0:02:32]} 15. Bxd6 {[%clk 0:02:53]}  Nf8 {[%clk 0:02:29]} 16. Rfd1 {[%clk 0:02:52]}  Ng6 {[%clk 0:02:25]} 17. e5 {[%clk 0:02:44]}  Nd5 {[%clk 0:02:21]} 18. Qe1 {[%clk 0:02:39]}  b6 {[%clk 0:02:04]} 19. c4 {[%clk 0:02:37]}  Nde7 {[%clk 0:00:46]} 20. a5 {[%clk 0:02:33]}  Bb7 {[%clk 0:00:44]} 21. Nd4 {[%clk 0:02:31]}  Nc8 {[%clk 0:00:35]} 22. a6 {[%clk 0:02:21]}  Nxd6 {[%clk 0:00:33]} 23. exd6 {[%clk 0:02:21]}  Bc8 {[%clk 0:00:29]} 24. Bxc6 {[%clk 0:02:20]}  Bd7 {[%clk 0:00:29]} 25. Bxa8 {[%clk 0:02:20]}  Rxa8 {[%clk 0:00:30]} 26. f4 {[%clk 0:02:16]}  Rd8 {[%clk 0:00:26]} 27. Qe4 {[%clk 0:02:12]}  Nf8 {[%clk 0:00:25]} 28. b4 {[%clk 0:02:11]}  Nh7 {[%clk 0:00:24]} 29. c5 {[%clk 0:02:10]}  Nf6 {[%clk 0:00:24]} 30. Qb7 {[%clk 0:02:09]}  bxc5 {[%clk 0:00:20]} 31. bxc5 {[%clk 0:02:08]}  Bc8 {[%clk 0:00:14]} 32. Qxa7 {[%clk 0:02:05]}  Nd5 {[%clk 0:00:15]} 33. Rdb1 {[%clk 0:01:45]}  Rd7 {[%clk 0:00:12]} 34. Qb8 {[%clk 0:01:43]}  Rd8 {[%clk 0:00:12]} 35. Qb5 {[%clk 0:01:42]}  Qf8 {[%clk 0:00:10]} 36. a7 {[%clk 0:01:40]}  Nc3 {[%clk 0:00:10]} 37. Qb4 {[%clk 0:01:37]}  Nxb1 {[%clk 0:00:09]} 38. a8=Q {[%clk 0:01:36]}  Bd7 {[%clk 0:00:06]} 39. Qxd8 {[%clk 0:01:27]}  Qxd8 {[%clk 0:00:07]} 40. c6 {[%clk 0:01:26]}  Bxc6 {[%clk 0:00:07]} 41. Nxc6 {[%clk 0:01:26]}  Nc3 {[%clk 0:00:04]} 42. Nxd8 {[%clk 0:01:23]}  Ne2+ {[%clk 0:00:03]} 43. Kh1 {[%clk 0:01:23]}  Kh7 {[%clk 0:00:01]} 44. Nxf7 {[%clk 0:01:22]}  Kg6 {[%clk 0:00:01]} 45. Qe4+ {[%clk 0:01:22]}  Kxf7 {[%clk 0:00:01]} 46. Ra7+ {[%clk 0:01:22]}  Kf6 {[%clk 0:00:01]} 47. Qe5+ {[%clk 0:01:22]}  Kg6 {[%clk 0:00:02]} 48. Rxg7# {[%clk 0:01:22]} 1-0


[Site "https://www.chess.com"]

[Event "Titled Tuesday Blitz November 07 Early 2023"]
[White "Belov, Alexei"]
[Black "KorolDimitriy75"]
[WhiteFideId "4128206"]
[WhiteElo "2600"]
[BlackElo "2336"]
[Result "0-1"]
[Round "6"]
[TimeControl "180+1"]
[Date "2023.11.07"]
[WhiteClock "0:00:21"]
[BlackClock "0:00:04"]
[Board "167"]

1. e4 {[%clk 0:03:00]}  c5 {[%clk 0:03:00]} 2. Nf3 {[%clk 0:03:00]}  d6 {[%clk 0:03:00]} 3. d4 {[%clk 0:03:01]}  cxd4 {[%clk 0:03:01]} 4. Nxd4 {[%clk 0:03:01]}  Nf6 {[%clk 0:03:01]} 5. Nc3 {[%clk 0:03:01]}  g6 {[%clk 0:03:02]} 6. Be3 {[%clk 0:03:01]}  Bg7 {[%clk 0:03:03]} 7. f3 {[%clk 0:03:02]}  O-O {[%clk 0:03:03]} 8. Qd2 {[%clk 0:03:02]}  Nc6 {[%clk 0:03:04]} 9. Bc4 {[%clk 0:03:02]}  Bd7 {[%clk 0:03:04]} 10. O-O-O {[%clk 0:03:02]}  Qa5 {[%clk 0:03:03]} 11. Kb1 {[%clk 0:03:02]}  Rfc8 {[%clk 0:03:00]} 12. Bb3 {[%clk 0:03:02]}  Ne5 {[%clk 0:03:00]} 13. h4 {[%clk 0:03:02]}  b5 {[%clk 0:03:00]} 14. g4 {[%clk 0:02:57]}  Nc4 {[%clk 0:03:00]} 15. Qe2 {[%clk 0:02:53]}  Nxb2 {[%clk 0:02:45]} 16. Kxb2 {[%clk 0:02:52]}  Qxc3+ {[%clk 0:02:45]} 17. Kb1 {[%clk 0:02:53]}  a5 {[%clk 0:01:57]} 18. g5 {[%clk 0:02:00]}  Nh5 {[%clk 0:01:37]} 19. Qd2 {[%clk 0:01:54]}  Qc7 {[%clk 0:00:23]} 20. Rhg1 {[%clk 0:01:31]}  a4 {[%clk 0:00:20]} 21. Bd5 {[%clk 0:01:31]}  Rab8 {[%clk 0:00:21]} 22. a3 {[%clk 0:01:29]}  e6 {[%clk 0:00:14]} 23. Ba2 {[%clk 0:01:28]}  Qc5 {[%clk 0:00:10]} 24. Qb4 {[%clk 0:01:25]}  Qxb4+ {[%clk 0:00:08]} 25. axb4 {[%clk 0:01:25]}  Rc3 {[%clk 0:00:08]} 26. Rd3 {[%clk 0:01:19]}  Rbc8 {[%clk 0:00:07]} 27. Ne2 {[%clk 0:01:08]}  Rxc2 {[%clk 0:00:07]} 28. Nd4 {[%clk 0:01:05]}  Rh2 {[%clk 0:00:06]} 29. Rc1 {[%clk 0:01:00]}  Rxc1+ {[%clk 0:00:06]} 30. Bxc1 {[%clk 0:01:00]}  Rxh4 {[%clk 0:00:06]} 31. Nc2 {[%clk 0:00:58]}  Be5 {[%clk 0:00:05]} 32. Ne3 {[%clk 0:00:51]}  Nf4 {[%clk 0:00:05]} 33. Rd1 {[%clk 0:00:49]}  Rh3 {[%clk 0:00:04]} 34. Ng4 {[%clk 0:00:49]}  Be8 {[%clk 0:00:03]} 35. Nxe5 {[%clk 0:00:45]}  dxe5 {[%clk 0:00:04]} 36. Rd8 {[%clk 0:00:45]}  Kf8 {[%clk 0:00:04]} 37. Be3 {[%clk 0:00:46]}  Ke7 {[%clk 0:00:04]} 38. Rb8 {[%clk 0:00:45]}  Kd7 {[%clk 0:00:03]} 39. Rxb5 {[%clk 0:00:40]}  Rxf3 {[%clk 0:00:03]} 40. Bc5 {[%clk 0:00:39]}  Nd3 {[%clk 0:00:03]} 41. Rb7+ {[%clk 0:00:38]}  Kc6 {[%clk 0:00:03]} 42. Re7 {[%clk 0:00:37]}  Nxc5 {[%clk 0:00:03]} 43. bxc5 {[%clk 0:00:37]}  Bd7 {[%clk 0:00:03]} 44. Kb2 {[%clk 0:00:35]}  a3+ {[%clk 0:00:03]} 45. Kc2 {[%clk 0:00:35]}  Rf4 {[%clk 0:00:03]} 46. Bb3 {[%clk 0:00:33]}  Bc8 {[%clk 0:00:03]} 47. Ba4+ {[%clk 0:00:32]}  Kxc5 {[%clk 0:00:03]} 48. Rc7+ {[%clk 0:00:32]}  Kb4 {[%clk 0:00:04]} 49. Be8 {[%clk 0:00:32]}  Ba6 {[%clk 0:00:03]} 50. Ra7 {[%clk 0:00:31]}  Rf2+ {[%clk 0:00:03]} 51. Kb1 {[%clk 0:00:30]}  Bc4 {[%clk 0:00:04]} 52. Rb7+ {[%clk 0:00:21]}  Kc3 {[%clk 0:00:04]} 0-1


[Site "https://www.chess.com"]